Cogmind - Beta 16 @@@ ROGUE MODE // 2025.11.13 @ 12:18:49 Player: ClassActJerk Result: Destroyed by Y-54 Guardian with Flak Gun Performance ------------- Evolutions (1) 500 Regions Visited (5) 1000 Robots Destroyed (2) 10 Value Destroyed (100) 100 Prototype IDs (0) 0 Alien Tech Used (0) 0 Bonus (649) 649 TOTAL SCORE: 2259 Bonus ------- Follower Combat Kills 49 Met Imprinter 300 Was Imprinted 300 Cogmind --------- Core Integrity 0/400 Matter 300/300 Energy 99/100 System Corruption 0% Temperature Cool (18) Movement Core (50) Location -6/Proximity Caves Parts ------- > --- POWER (1) -------- (None) > --- PROPULSION (2) --- (None) > --- UTILITY (3) ------ (None) > --- WEAPON (3) ------- (None) > --- INVENTORY (5) ---- Makeshift Targeting Computer Storm Laser Peak State ------------ > --- POWER ------------ Light Ion Engine > --- PROPULSION ------- Light Treads Light Treads > --- UTILITY ---------- Small Storage Unit Makeshift ECM Suite Layered Light Armor Plating > --- WEAPON ----------- Makeshift Laser > --- INVENTORY -------- Light Ion Engine Makeshift Targeting Computer Storm Laser [Rating: 17] Favorites ----------- Power Light Ion Engine Engine Light Ion Engine Propulsion Light Treads Treads Light Treads Utility Small Storage Unit Device Makeshift ECM Suite Storage Small Storage Unit Protection Layered Light Armor Plating Weapon Assault Rifle Energy Gun Makeshift Laser Ballistic Gun Assault Rifle Build | -11 -10 -9 -9 -7 -6 ------- Run | Yrd Mat Mat Min Zio Pro Slots Evolved 2 | . . 2 . . . Power . | . . . . . . Propulsion . | . . . . . . Utility 1 | . . 1 . . . Weapon 1 | . . 1 . . . Parts Attached 10 | 6 . . . 1 3 Power 2 | 1 . . . . 1 Engine 2 | 1 . . . . 1 Core . | . . . . . . Reactor . | . . . . . . Propulsion 2 | 2 . . . . . Treads 2 | 2 . . . . . Leg . | . . . . . . Wheel . | . . . . . . Hover . | . . . . . . Flight . | . . . . . . Utility 3 | 1 . . . 1 1 Device 1 | . . . . . 1 Storage 1 | 1 . . . . . Processor . | . . . . . . Hackware . | . . . . . . Protection 1 | . . . . 1 . Artifact . | . . . . . . Weapon 3 | 2 . . . . 1 Energy Gun 1 | . . . . . 1 Energy Cannon . | . . . . . . Ballistic Gun 2 | 2 . . . . . Ballistic Cannon . | . . . . . . Launcher . | . . . . . . Special Weapon . | . . . . . . Impact Weapon . | . . . . . . Slashing Weapon . | . . . . . . Piercing Weapon . | . . . . . . Special Melee Weapon . | . . . . . . Unidentified Prototypes . | . . . . . . Parts Lost 3 | . . . . . 3 Power 2 | . . . . . 2 Propulsion . | . . . . . . Utility 1 | . . . . . 1 Weapon . | . . . . . . Highest Loss Streak 2 | . . . . . 2 To Critical Strikes . | . . . . . . Average Backups 2 | 1 1 1 1 2 3 Power . | 1 1 1 1 1 . Propulsion . | . . . . . . Utility . | . . . . . 1 Weapon . | . . . . . 1 Tool/Special . | . . . . . . Unused Backups 3 | . . . . . 3 Power . | . . . . . . Propulsion . | . . . . . . Utility 2 | . . . . . 2 Weapon 1 | . . . . . 1 Tool/Special . | . . . . . . Average Slot Usage (%) 69 | . 85 66 66 72 56 Engine 10 | . 14 11 11 11 8 Treads 21 | . 28 22 22 22 16 Device 1 | . . . . . 6 Storage 11 | . 14 11 11 11 10 Protection 6 | . . . . 7 8 Energy Gun 1 | . . . . . 6 Ballistic Gun 15 | . 28 22 22 20 . Peak Build Rating 17 | 6 6 6 6 13 17 Average Rating 9 | 5 6 6 6 9 12 On Entrance 5 | . 6 6 6 6 11 Avg Prop Armor Cover (%) . | . . . . . . Naked Turns 3 | . . . . . 3 Heaviest Build 22 | 12 12 12 12 16 22 Greatest Support 40 | 40 40 40 40 40 40 Greatest Overweight (x) 6 | . . . . . 6 Average Overweight (x) . | . . . . . . Largest Inventory Capacity 8 | 8 8 8 8 8 8 Average Capacity 7 | 7 8 8 8 8 7 Most Carried 8 | 5 1 1 1 8 8 Average Carried 3 | 1 1 1 1 2 6 Final Capacity 8 | 8 8 8 8 8 5 Final Carried 8 | 1 1 1 1 8 5 Class Distribution -------------------- 100% | Mutant Dominant Class ---------------- Mutant | -10/Materials Mutant | -9/Materials Mutant | -9/Mines Mutant | -7/Zion Mutant | -6/Proximity Caves Resources | -11 -10 -9 -9 -7 -6 ----------- Run | Yrd Mat Mat Min Zio Pro Matter Collected 343 | 214 94 . . . 35 Remotely . | . . . . . . Salvage Created 98 | . 50 . . . 48 Parts 1 | . 1 . . . . Haulers Intercepted . | . . . . . . Recyclers Shooed . | . . . . . . Parts Field Recycled . | . . . . . . Retrieved Matter . | . . . . . . Parts Self-Destructed 3 | . . . . . 3 Prevented . | . . . . . . Parts Restored . | . . . . . . Kills | -11 -10 -9 -9 -7 -6 ------- Run | Yrd Mat Mat Min Zio Pro Combat Hostiles Destroyed 2 | . 1 . . . 1 Guns 1 | . 1 . . . . Classes Destroyed 2 | . 1 . . . 1 Grunt 1 | . 1 . . . . Hunter 1 | . . . . . 1 Best Kill Streak 1 | . 1 . . . 1 Combat Bots Only 1 | . 1 . . . 1 Max Kills in Single Turn 1 | . 1 . . . 1 Gunslinging . | . . . . . . Exploded . | . . . . . . Melee . | . . . . . . Uniques/NPCs Destroyed . | . . . . . . Combat | -11 -10 -9 -9 -7 -6 -------- Run | Yrd Mat Mat Min Zio Pro Hostile Shots Fired 187 | . 15 . . . 172 Missed 74 | . 4 . . . 70 Hits 113 | . 11 . . . 102 Melee 2 | . . . . . 2 Projectile 111 | . 11 . . . 100 Critical Strikes 2 | . . . . . 2 Damage Taken 1192 | . 121 . . . 1071 Core 415 | . 12 . . . 403 Absorbed by Shields . | . . . . . . Core Remaining (%) 97 | 100 95 . . . . Volleys Fired 14 | . 8 . . . 6 Largest 2 | . 2 . . . 1 Hottest 50 | . 40 . . . 50 Shots Fired 22 | . 16 . . . 6 Gun 22 | . 16 . . . 6 Cannon . | . . . . . . Launcher . | . . . . . . Special . | . . . . . . Kinetic 16 | . 16 . . . . Thermal 6 | . . . . . 6 Explosive . | . . . . . . Electromagnetic . | . . . . . . Robot Hit Streak 4 | . 3 . . . 4 Robot Miss Streak 2 | . 2 . . . 1 Penetration Max . | . . . . . . Secondary Targets . | . . . . . . Shots Hit Robots 13 | . 9 . . . 4 Core Hits 1 | . 1 . . . . Critical Kills . | . . . . . . Critical Parts Destroyed . | . . . . . . Critical Strikes . | . . . . . . Melee Attacks . | . . . . . . Impact . | . . . . . . Slashing . | . . . . . . Piercing . | . . . . . . Sneak Attacks . | . . . . . . Combat Hostiles . | . . . . . . Follow-up Attacks . | . . . . . . Damage Inflicted 167 | . 116 . . . 51 Guns 167 | . 116 . . . 51 Cannons . | . . . . . . Explosions . | . . . . . . Melee . | . . . . . . Ramming . | . . . . . . Kinetic 116 | . 116 . . . . Thermal 51 | . . . . . 51 Explosive . | . . . . . . Electromagnetic . | . . . . . . Impact . | . . . . . . Slashing . | . . . . . . Piercing . | . . . . . . Highest Corruption . | . . . . . . Average Corruption . | . . . . . . Corruption Purged . | . . . . . . Corruption Blocked . | . . . . . . Overload Shots . | . . . . . . Overflow Damage . | . . . . . . Projectiles . | . . . . . . Explosions . | . . . . . . Melee . | . . . . . . Knockbacks . | . . . . . . Impact . | . . . . . . Kinetic . | . . . . . . Secondary . | . . . . . . Self-Inflicted Damage . | . . . . . . Shots . | . . . . . . Rammed . | . . . . . . Targets Rammed . | . . . . . . Kicked . | . . . . . . Crushed . | . . . . . . Highest Temperature 42 | . . . . . 42 Average Temperature 15 | . . . . . 15 Received Heat Transfer 354 | . 66 . . . 288 Siege Activations . | . . . . . . Martial Activations . | . . . . . . Shielding Activations . | . . . . . . Robots Disrupted . | . . . . . . Combat Hostiles . | . . . . . . Robots Corrupted . | . . . . . . Combat Hostiles . | . . . . . . Parts Fried . | . . . . . . Impact Corruptions . | . . . . . . Robots Melted 1 | . . . . . 1 Combat Hostiles 1 | . . . . . 1 Parts Melted 1 | . . . . . 1 Heat Transferred 111 | . . . . . 111 Parts Sabotaged . | . . . . . . Parts Stolen . | . . . . . . Parts Stripped . | . . . . . . Power Chain Reactions . | . . . . . . Alert | -11 -10 -9 -9 -7 -6 ------- Run | Yrd Mat Mat Min Zio Pro Maximum Alert Level . | . . . . . . Low Security (%) 100 | 100 100 100 100 . . Level 1 . | . . . . . . Level 2 . | . . . . . . Level 3 . | . . . . . . Level 4 . | . . . . . . Level 5 . | . . . . . . High Security . | . . . . . . Max Security . | . . . . . . Peak Influence 30 | . 30 . . . . Initial . | . . . . . . Average 1 | . 1 . . . . Influence Increases 115 | . 30 . . . 85 Destroy 0b10 Robot/C 60 | . 20 . . . 40 Destroy Leader 20 | . 10 . . . 10 Allied During Kill 5 | . . . . . 5 Lose Combat Pursuer 30 | . . . . . 30 Influence Decreases 93 | . 30 . . . 63 Time Decay 68 | . 30 . . . 38 Lost Ally 25 | . . . . . 25 Squads Dispatched 3 | . 2 . . . 1 Investigation . | . . . . . . Extermination . | . . . . . . Reinforcement 2 | . 2 . . . . Assault 1 | . . . . . 1 Garrison . | . . . . . . Intercept . | . . . . . . Searches Triggered . | . . . . . . Construction Impeded . | . . . . . . Haulers Reinforced . | . . . . . . Active Scanning Responses . | . . . . . . Cargo Convoy Interrupts . | . . . . . . Stealth | -11 -10 -9 -9 -7 -6 --------- Run | Yrd Mat Mat Min Zio Pro Distress Signals . | . . . . . . Communications Jammed . | . . . . . . Distress Signals . | . . . . . . Times Spotted 20 | . 5 . . . 15 Peak Tracking Total 9 | . 2 . . . 9 Tactical Retreats 6 | . . . . . 6 ECM-based Alert Blocks 13 | . . . . . 13 Traps | -11 -10 -9 -9 -7 -6 ------- Run | Yrd Mat Mat Min Zio Pro Traps Triggered . | . . . . . . Indirectly . | . . . . . . Trap Hack Attempts . | . . . . . . Triggered . | . . . . . . Disarmed . | . . . . . . Reprogrammed . | . . . . . . Reused . | . . . . . . Traps Extracted . | . . . . . . Installed . | . . . . . . Triggered . | . . . . . . Machines | -11 -10 -9 -9 -7 -6 ---------- Run | Yrd Mat Mat Min Zio Pro Machines Disabled . | . . . . . . Max in Single Turn . | . . . . . . Machines Repaired . | . . . . . . Machines Dismantled . | . . . . . . Machines Sabotaged . | . . . . . . Overloaded Fab Kills . | . . . . . . Hacking | -11 -10 -9 -9 -7 -6 --------- Run | Yrd Mat Mat Min Zio Pro Machines Accessed . | . . . . . . Terminals . | . . . . . . Fabricators . | . . . . . . Repair Stations . | . . . . . . Recycling Units . | . . . . . . Scanalyzers . | . . . . . . Garrison Access . | . . . . . . Total Hacks . | . . . . . . Successful . | . . . . . . Failed . | . . . . . . Catastrophic . | . . . . . . Database Lockouts . | . . . . . . Manual . | . . . . . . Terminals . | . . . . . . Fabricators . | . . . . . . Repair Stations . | . . . . . . Recycling Units . | . . . . . . Scanalyzers . | . . . . . . Garrison Access . | . . . . . . Terminal Hacks . | . . . . . . Fabricator Hacks . | . . . . . . Repair Station Hacks . | . . . . . . Recycling Unit Hacks . | . . . . . . Scanalyzer . | . . . . . . Garrison Access Hacks . | . . . . . . Unauthorized Hacks . | . . . . . . Terminals . | . . . . . . Fabricators . | . . . . . . Repair Stations . | . . . . . . Recycling Units . | . . . . . . Scanalyzers . | . . . . . . Garrison Access . | . . . . . . Data Cores Recovered . | . . . . . . Used . | . . . . . . Hacking Detections . | . . . . . . Full Trace Events . | . . . . . . Feedback Events . | . . . . . . Feedback Blocked . | . . . . . . Robot Schematics Acquired 3 | . . . . 3 . Robots Built . | . . . . . . Authchips . | . . . . . . Time . | . . . . . . Total Robot Build Rating . | . . . . . . Part Schematics Acquired 13 | . . . . 13 . Parts Built . | . . . . . . Authchips . | . . . . . . Time . | . . . . . . Total Part Build Rating . | . . . . . . Part Studies Acquired . | . . . . . . Parts Repaired . | . . . . . . Time . | . . . . . . Parts Recycled . | . . . . . . Recycled Matter . | . . . . . . Retrieved Matter . | . . . . . . Retrieved Components . | . . . . . . Parts Scanalyzed . | . . . . . . Part Schematics Acquired . | . . . . . . Parts Damaged . | . . . . . . Bothacking | -11 -10 -9 -9 -7 -6 ------------ Run | Yrd Mat Mat Min Zio Pro Used RIF Installer . | . . . . . . Robots Hacked . | . . . . . . Non-combat . | . . . . . . Combat . | . . . . . . Robot Hacks Applied . | . . . . . . Relay Couplers Released . | . . . . . . Fabnet Peak Effective % . | . . . . . . Robots Rewired . | . . . . . . Allies Hacked . | . . . . . . Hacks Repelled . | . . . . . . Allies | -11 -10 -9 -9 -7 -6 -------- Run | Yrd Mat Mat Min Zio Pro Total Allies 7 | . . . 3 4 . Largest Group 7 | . . . 3 7 3 Highest-Rated Group 195 | . . . 40 195 40 Highest-Rated Ally 42 | . . . 16 42 16 Total Orders . | . . . . . . Ally Attacks 13 | . . . . . 13 Total Damage 198 | . . . . . 198 Kills 1 | . . . . . 1 Allies Corrupted . | . . . . . . Allies Melted . | . . . . . . Intel | -11 -10 -9 -9 -7 -6 ------- Run | Yrd Mat Mat Min Zio Pro Active Infowar (turns) 369 | . . . . . 369 ECM 369 | . . . . . 369 Robot Analysis Total . | . . . . . . Derelict Logs Recovered 1 | . . . . 1 . Drone Launches . | . . . . . . Drone Recoveries . | . . . . . . Exploration | -11 -10 -9 -9 -7 -6 ------------- Run | Yrd Mat Mat Min Zio Pro Turns Passed 2249 | 118 331 31 106 1060 603 Spaces Moved 1313 | 75 172 20 64 659 323 Core 161 | 16 . . . . 145 Treads 1152 | 59 172 20 64 659 178 Legs . | . . . . . . Wheels . | . . . . . . Hover . | . . . . . . Flight . | . . . . . . Fastest Speed 50 | 50 160 160 160 160 50 Average Speed 152 | 136 160 160 160 160 133 Slowest Speed 350 | 160 160 160 160 160 350 Overloaded Moves . | . . . . . . Propulsion Burnouts . | . . . . . . Robots Hopped . | . . . . . . Potential Cave-ins . | . . . . . . Cave-ins Triggered . | . . . . . . Exploration Rate (%) 28 | 5 28 3 20 77 36 Regions Visited 5 Branch Regions 3 Pre-discovered Areas . | . . . . . . Known Exits Taken . | . . . . . . Unknown Exits Taken 5 | 1 1 1 1 1 . Scrap Searched 2 | . . . . 1 1 Spaces Dug . | . . . . . . Terrain Destroyed . | . . . . . . Melee . | . . . . . . Projectile . | . . . . . . AOE . | . . . . . . Terrain Rammed . | . . . . . . Walls Destroyed . | . . . . . . Machines Disabled . | . . . . . . Actions | -11 -10 -9 -9 -7 -6 --------- Run | Yrd Mat Mat Min Zio Pro Total 1545 | 90 212 19 68 666 490 Wait 194 | 5 33 . 5 . 151 Move 1308 | 74 171 19 63 658 323 Hop . | . . . . . . Pick Up 11 | 5 . . . 5 1 Fast Attach 2 | 2 . . . . . Attach 8 | 4 . . . 1 3 Detach . | . . . . . . Swap . | . . . . . . Drop 7 | . . . . 2 5 Fire 14 | . 8 . . . 6 Melee . | . . . . . . Ram . | . . . . . . Kick . | . . . . . . Crush . | . . . . . . Escape Stasis . | . . . . . . Rewire 1 | . . . . . 1 Trap . | . . . . . . Miscellaneous . | . . . . . . Route ------- -11/Scrapyard -10/Materials -9/Materials -9/Mines -7/Zion -6/Proximity Caves History --------- Turn | Location | Event 6 | -11/Scrapyard | Discovered new exit (range 16) 119 | -11/Scrapyard | Entered Materials 120 | -10/Materials | Met a group of wandering Federalists 310 | -10/Materials | Build established: Mutant 432 | -10/Materials | Discovered new exit (range 12) 450 | -10/Materials | Entered another Materials area 450 | -9/Materials | Evolved 2 slots: Utility x1, Weapon x1 450 | -9/Materials | Discovered new exit (range 14) 481 | -9/Materials | Entered Mines 505 | -9/Mines | Assisted by bots powering up and referring to "LRC-V3" 577 | -9/Mines | A Derelict revealed a hidden shortcut to a safe place 587 | -9/Mines | Entered Zion 587 | -7/Zion | Accompanied by 3 allies 1186 | -7/Zion | Met Imprinter 1220 | -7/Zion | Imprinted 1223 | -7/Zion | Declared Zion's savior 1559 | -7/Zion | Found Prototype Energy Gun 1626 | -7/Zion | Discovered new exit (range 13) 1647 | -7/Zion | Entered Proximity Caves 1647 | -6/Proximity Caves | Accompanied by 3 allies 1783 | -6/Proximity Caves | Lost 3 allies 1786 | -6/Proximity Caves | Attracted the attention of an 0b10 outpost 1887 | -6/Proximity Caves | Attracted the attention of an 0b10 checkpoint 2119 | -6/Proximity Caves | Core integrity fell below 50% 2180 | -6/Proximity Caves | Core integrity fell below 20% 2213 | -6/Proximity Caves | Encountered a Derelict guarding a broken Freighter 2250 | -6/Proximity Caves | Destroyed by Y-54 Guardian with Flak Gun Last Messages --------------- 01893_ Acquired Imp. Utility Shielding. 02050_ E-15 Imp sneak attacks. 02050_ 69-0ZK(k) Lgt. Ion Engine blown off. 02050_ 69-0ZK(k) Tractor Beam blown off. 02050_ E-15 Imp destroyed. 02050_ 69-0ZK(k) breaks down the debris. 02056_ 69-0ZK(k) destroyed. 02064_ Segregator fries itself beyond repair. 02096_ Lgt. Ion Engine destroyed. 02099_ Dropped Lgt. Treads. 02105_ Lyr. Light Armor Plating destroyed. 02107_ Dropped Mak. ECM Suite. 02108_ Dropped Mak. Laser. 02213_ EC-7GR(g): "There's a broken freighter here! But we didn't do it... How did that happen?" 02219_ Critical hit (Burn: +37). 02230_ Attempting to rewire X-67 Chaingunner. 02230_ X-67 Chaingunner is broken beyond repair. 02247_ Dropped Sml. Storage Unit. Map ----- +----------------------------------------------------+ | ?????????????????????????????????????????????????? | | ?????????????????????????????????????????????????? | | ?????????????????????????????????????????????????? | | ?????????????????????????????????????????????????? | | ?????????????????????????????????????????????????? | | ?????????????????????????????????????????????????? | | ?????????????????????????????????????????????????? | | ?????????????????????????????????????????????????? | | ?????????????????????????????????????????????????? | | ?????????????????????????????????????????????????? | | ?????????????????????????????????????????????????? | | ?????????????????????????????????????????????????? | | ?????????????????????????????????????????????????? | | ????????????????####?????????????????????????????? | | ??????????##??### ##????????????????????????????? | | ??????????? ## ##???????????????????????????? | | ??????????# x# #???????????????????????????? | | ??????????# # # ##??????????????????????????? | | ??????????## ## ##?????????????????????????? | | ???????????##??### g #?????????????????????????? | | ?????????????????# #?????????????????????????? | | ?????????????????# b ######????????????????????? | | ?????????????????## ! ## ##???????????????????? | | ??????????????????##! #???????????????????? | | ???????????????????####g ##???????????????????? | | ?????????????????????##Y @ ##????????????????????? | | ????????????????????## b #?????????????????????? | | ????????????????????# b ##?????????????????????? | | ??????????????####### ###??????????????????????? | | ??????????????# ## ##????????????????????????? | | ???????????????# ##?????????????????????????? | | ???????????????## ##?????????????????????????? | | ???????????????## ##????????????????????????? | | ???????????????# ##???????????????????????? | | ???????????????# #???????????????????????? | | ???????????????# ##??????????????????????? | | ??????????????## ####???????????????????? | | ??????????????# #???????????????????? | | ??????????????# ????????????????? | | ??????????????# ????????????????? | | ??????????????# ##### ##?????????????????? | | ???#??????????# #????# #??????????????????? | | #?????????## #????? #??????????????????? | | ??????????# #????? #??????????????????? | | ????????## #???## #?????????????????? | | #????????## ##?# ????????????????? | | ????????### ## ????????????????? | | # ???????## ????????????????? | | # #####??# ????????????????? | | #??# ????????????????? | +----------------------------------------------------+ Best States ------------- Heat Dissipation 28 Energy Generation 10 Energy Capacity 125 Matter Stores 300 Matter Capacity 300 Sight Range 16 Terrain Scan Density 10 ECM Strength 2 Armor Coverage 150 Evasion (%) 50 Recoil Reduction 2 Item Schematics ----------------- Thermic Laser | -7/Zion | Archive Hvy. Rocket Launcher | -7/Zion | Archive Adv. System Shield | -7/Zion | Archive Shock Absorption System | -7/Zion | Archive Matter Compressor | -7/Zion | Archive System Restoration Module | -7/Zion | Archive Lrn. Missile Launcher | -7/Zion | Archive Hvy. Plasma Cannon | -7/Zion | Archive Recalibrator | -7/Zion | Archive Med. Reactive Plating | -7/Zion | Archive Phase Cannon | -7/Zion | Archive Lrn. Proton Cannon | -7/Zion | Archive Microactuators | -7/Zion | Archive Robot Schematics ------------------ L-31 Rogue | -7/Zion | Archive B-48 Gladiator | -7/Zion | Archive H-55 Commando | -7/Zion | Archive Fabricated ------------ Nothing Repaired ---------- Nothing Studied --------- None Alien Tech Used ----------------- None Achievements -------------- None Challenges ------------ None Game ------ Seed FusionChromaticDeflector Manual? 0 Play Time 00:15:03 Cumulative 22.5 hours Start 2025.11.13 @ 12:07:27 End 2025.11.13 @ 12:18:49 Sessions 1 Manual Loads 0 Difficulty Rogue Special Mode None Game No. 70 Rogue 70 Adventurer 0 Explorer 0 Win Type - Total 0 Types 0/0/0/0/0/0/0/0/0/0 Lore% 6 Gallery% 19 Achievement% 14 Wizard Run 0 Options --------- Layout 1 ASCII 0 Keyboard 0 Movement Mouse Keybinds 0 Fullscreen 1 Font 24/Terminus Map View 50x35 Zoom Use 0% Tactical HUD 1 Map Filters NONE Filters NONE Steam 1 RUN: 1e056796-8f82-4d83-a795-86b94a2d4dc8